bitfinex/quotes_SOLUSD_20241029
["timestamp","ask_amount","ask_price","bid_price","bid_amount"]
[1730188669035,13.10405125,180.15,180.1,7.55305125]
[1730188671155,5.551,180.15,180.11,7.55305125]
[1730188672152,5.551,180.15,180.1,7.55305125]
[1730188672582,7.55305125,180.12,180.02,15.1146]
[1730188672737,7.55305125,180.12,180.07,7.55305125]
[1730188673536,13.10465125,180.13,180.08,7.55305125]
[1730188673849,7.55305125,180.12,180.06,7.55305125]
[1730188674552,20.0,180.14,180.0,4.49937196]
[1730188674758,7.55305125,180.09,180.04,7.55305125]
[1730188675958,13.10565125,180.1,180.05,7.55305125]
[1730188677357,13.10565125,180.1,179.99,43.776884]
[1730188677544,13.10565125,180.1,180.05,7.55305125]
[1730188679561,13.10565125,180.1,180.04,7.55305125]
[1730188681032,7.55305125,180.09,180.04,7.55305125]
[1730188682160,13.10595125,180.09,180.04,7.55305125]
[1730188682960,7.55305125,180.09,180.04,7.55305125]
[1730188683160,7.55305125,180.1,180.05,7.55305125]
[1730188685760,7.55305125,180.09,180.04,7.55305125]
[1730188689252,13.10585125,180.09,179.99,43.776884]
[1730188689440,13.10585125,180.09,180.04,7.55305125]
[1730188693042,20.0,180.14,180.04,7.55305125]
[1730188693351,7.55305125,180.12,180.06,7.55305125]
[1730188694864,5.5517,180.13,180.08,7.55305125]
[1730188695168,13.10475125,180.13,180.08,7.55305125]
[1730188695643,21.5369,180.15,180.1,7.55305125]
[1730188695850,21.46356648,180.16,180.11,7.55305125]
[1730188697070,29.01661773,180.16,180.11,7.55305125]
[1730188699155,7.55305125,180.15,180.1,7.55305125]
[1730188700259,13.10395125,180.15,180.1,7.55305125]
[1730188706472,7.55305125,180.14,180.09,7.55305125]
[1730188707761,5.5515,180.13,180.09,7.55305125]
[1730188709552,5.5515,180.13,180.08,7.55305125]
[1730188709980,13.10455125,180.13,180.08,7.55305125]
[1730188711080,5.5515,180.13,180.08,7.55305125]
[1730188714786,5.5515,180.13,180.05,23.776884]
[1730188715090,5.5515,180.13,180.08,7.55305125]
[1730188724891,5.5511,180.15,180.1,7.55305125]
[1730188728800,5.5511,180.15,180.11,7.55305125]
[1730188731695,21.46346648,180.16,180.11,7.55305125]
[1730188732001,29.01651773,180.16,180.1,7.55305125]
[1730188733382,7.55305125,180.15,180.1,7.55305125]
[1730188738595,5.5509,180.15,180.1,7.55305125]
[1730188743697,5.5509,180.15,180.11,7.55305125]
[1730188748832,5.5506,180.16,180.11,7.55305125]
[1730188750610,5.5506,180.16,180.05,23.776884]
[1730188750611,21.73237029,180.19,180.15,7.55305125]
[1730188750798,21.73237029,180.19,180.08,15.2101]
[1730188750799,5.549,180.21,180.11,23.776884]
[1730188751119,5.549,180.21,180.17,7.55305125]
[1730188751518,5.549,180.21,180.16,7.55305125]
[1730188752196,13.10205125,180.21,180.15,7.55305125]
[1730188754498,6.4086,180.22,180.15,7.55305125]
[1730188754499,7.55305125,180.2,180.15,7.55305125]
[1730188754706,5.5496,180.19,180.15,7.55305125]
[1730188757217,13.10205125,180.21,180.15,7.55305125]
[1730188757421,13.10205125,180.21,180.16,7.55305125]
[1730188769906,13.10205125,180.21,180.17,7.55305125]
[1730188769907,5.549,180.21,180.17,7.55305125]
[1730188775618,13.10205125,180.21,180.16,7.55305125]
[1730188776507,13.10205125,180.21,180.11,23.776884]
[1730188776814,13.10205125,180.21,180.15,7.55305125]
[1730188778232,5.549,180.21,180.15,7.55305125]
[1730188778532,13.10205125,180.21,180.15,7.55305125]
[1730188787117,13.10205125,180.21,180.11,23.776884]
[1730188787118,5.549,180.21,180.17,7.55305125]
[1730188787525,5.549,180.21,180.18,7.55305125]
[1730188789343,5.549,180.21,180.14,23.776884]
[1730188789525,13.10205125,180.21,180.16,7.55305125]
[1730188790035,5.549,180.21,180.17,7.55305125]
[1730188794137,5.549,180.21,180.16,7.55305125]
[1730188795428,13.10205125,180.21,180.16,7.55305125]
[1730188799052,5.549,180.21,180.16,7.55305125]
[1730188799250,5.79588977,180.22,180.17,7.55305125]
[1730188799549,5.79588977,180.22,180.21,7.55305125]
[1730188799751,5.5472,180.27,180.21,7.55305125]
[1730188800084,5.5472,180.27,180.23,7.55305125]
[1730188800362,5.5472,180.27,180.18,15.9255]
[1730188800363,5.5472,180.27,180.22,7.55305125]
[1730188800956,5.5472,180.27,180.24,7.55305125]
[1730188801549,5.5472,180.27,180.25,7.55305125]
[1730188801850,5.79564628,180.29,180.25,7.55305125]
[1730188802050,5.5469,180.28,180.24,7.55305125]
[1730188802663,5.5469,180.28,180.19,6.2211]
[1730188802664,7.55305125,180.27,180.2,23.776884]
[1730188802845,13.09995125,180.28,180.23,7.55305125]
[1730188803444,13.09995125,180.28,180.2,23.776884]
[1730188803445,5.5469,180.28,180.24,7.55305125]
[1730188805838,13.09995125,180.28,180.23,7.55305125]
[1730188806549,7.55305125,180.24,180.15,6.609]
[1730188806750,7.55305125,180.24,180.18,7.55305125]
[1730188807064,7.55305125,180.24,180.19,7.55305125]
[1730188807447,20.0,180.27,180.22,7.55305125]
[1730188807655,27.55305125,180.27,180.22,7.55305125]
[1730188807959,42.11525125,180.28,180.23,7.55305125]
[1730188808354,28.24795125,180.28,180.23,7.55305125]
[1730188808662,20.6949,180.28,180.23,7.55305125]
[1730188809062,5.5469,180.28,180.23,7.55305125]
[1730188810271,5.5469,180.28,180.24,7.55305125]
[1730188810449,5.5469,180.28,180.26,7.55305125]
[1730188811050,5.5469,180.28,180.25,7.55305125]
[1730188811249,5.5469,180.28,180.24,7.55305125]
[1730188811946,5.5469,180.28,180.25,7.55305125]
[1730188813372,5.5469,180.28,180.24,7.55305125]
[1730188814708,7.55305125,180.26,180.18,16.1617]
[1730188814992,7.55305125,180.26,180.2,7.55305125]
[1730188815392,5.5469,180.28,180.24,7.55305125]
[1730188815554,5.5469,180.28,180.25,7.55305125]
[1730188816398,5.5466,180.29,180.19,23.776884]
[1730188816578,5.5466,180.29,180.25,7.55305125]
[1730188816787,7.55305125,180.28,180.19,23.776884]
[1730188816981,7.55305125,180.27,180.22,7.55305125]
[1730188817284,7.55305125,180.28,180.22,7.55305125]
[1730188817793,13.09965125,180.29,180.24,7.55305125]
[1730188818102,5.5466,180.29,180.25,7.55305125]
[1730188818811,5.5466,180.29,180.21,6.1223]
[1730188819041,5.5466,180.29,180.25,7.55305125]
[1730188819900,5.5466,180.29,180.24,7.55305125]
[1730188820603,13.09965125,180.29,180.24,7.55305125]
[1730188822501,5.5466,180.29,180.25,7.55305125]
[1730188822712,5.5466,180.29,180.22,23.776884]
[1730188823050,13.09965125,180.29,180.22,23.776884]
[1730188823239,13.09965125,180.29,180.24,7.55305125]
[1730188823450,5.5466,180.29,180.25,7.55305125]
[1730188825288,8.16244425,180.3,180.25,7.55305125]
[1730188825491,13.70874425,180.3,180.25,7.55305125]
[1730188826572,6.155693,180.3,180.26,7.55305125]
[1730188826721,13.70874425,180.3,180.25,7.55305125]
[1730188827091,0.609393,180.3,180.26,7.55305125]
[1730188827298,6.155693,180.3,180.26,7.55305125]
[1730188827700,13.70874425,180.3,180.25,7.55305125]
[1730188829617,7.55305125,180.29,180.17,6.2805]
[1730188829783,7.55305125,180.29,180.23,7.55305125]
[1730188830811,5.5469,180.28,180.24,7.55305125]
[1730188832910,5.5469,180.28,180.25,7.55305125]
[1730188833074,5.5466,180.29,180.25,7.55305125]
[1730188833274,0.609393,180.3,180.26,7.55305125]
[1730188833498,0.609393,180.3,180.28,7.55305125]
[1730188833792,0.609393,180.3,180.29,7.55305125]
[1730188840373,0.609393,180.3,180.24,23.776884]
[1730188840576,13.70874425,180.3,180.25,7.55305125]
[1730188840894,6.155693,180.3,180.25,7.55305125]
[1730188841200,6.155693,180.3,180.26,7.55305125]
[1730188841585,7.55305125,180.28,180.18,20.1]
[1730188841804,7.55305125,180.28,180.23,7.55305125]
[1730188841994,7.55305125,180.29,180.24,7.55305125]
[1730188842804,13.70874425,180.3,180.24,7.55305125]
[1730188843005,6.155693,180.3,180.25,7.55305125]
[1730188843216,13.70874425,180.3,180.25,7.55305125]
[1730188844289,6.155693,180.3,180.25,7.55305125]
[1730188845024,6.155693,180.3,180.26,7.55305125]
[1730188845692,6.155693,180.3,180.25,7.55305125]
[1730188846005,13.70874425,180.3,180.25,7.55305125]
[1730188847385,6.155693,180.3,180.25,7.55305125]
[1730188849409,0.609393,180.3,180.26,7.55305125]
[1730188849596,0.609393,180.3,180.29,7.55305125]
[1730188851005,0.609393,180.3,180.29,31.32993525]
[1730188851921,21.7265,180.4,180.29,97.36184025]
[1730188851922,15.486,180.4,180.29,97.36184025]
[1730188852121,21.0292,180.4,180.37,7.55305125]
[1730188852511,21.0292,180.4,180.36,7.55305125]
[1730188853229,15.486,180.4,180.36,7.55305125]
[1730188853921,15.486,180.4,180.37,7.55305125]
[1730188855129,15.486,180.4,180.36,7.55305125]
[1730188855333,28.58245125,180.4,180.31,23.776884]
[1730188855538,28.58245125,180.4,180.35,7.55305125]
[1730188856245,21.0294,180.4,180.35,7.55305125]
[1730188856585,21.0294,180.4,180.36,7.55305125]
[1730188857446,5.5434,180.4,180.37,7.55305125]
[1730188857946,21.73484267,180.41,180.37,7.55305125]
[1730188858151,21.73484267,180.41,180.38,7.55305125]
[1730188859924,21.73484267,180.41,180.37,7.55305125]
[1730188860120,21.73484267,180.41,180.36,7.55305125]
[1730188860330,21.73484267,180.41,180.37,7.55305125]
[1730188860627,21.73484267,180.41,180.38,7.55305125]
[1730188860840,21.73484267,180.41,180.37,7.55305125]
[1730188862628,21.73484267,180.41,180.36,7.55305125]
[1730188862810,21.73484267,180.41,180.37,7.55305125]
[1730188863327,29.28789392,180.41,180.36,7.55305125]
[1730188865821,29.28789392,180.41,180.35,7.55305125]
[1730188866119,7.55305125,180.39,180.31,23.776884]
[1730188866423,7.55305125,180.38,180.33,7.55305125]
[1730188866618,7.55305125,180.39,180.33,7.55305125]
[1730188866819,5.5438,180.38,180.33,7.55305125]
[1730188867419,5.5438,180.38,180.34,7.55305125]
[1730188868521,7.55305125,180.39,180.34,7.55305125]
[1730188869827,5.5438,180.38,180.34,7.55305125]
[1730188870129,5.5438,180.38,180.35,7.55305125]
[1730188871527,7.55305125,180.4,180.35,7.55305125]
[1730188871720,5.5435,180.39,180.35,7.55305125]
[1730188871916,5.5435,180.39,180.34,7.55305125]
[1730188873703,13.09655125,180.39,180.34,7.55305125]
[1730188876060,13.09625125,180.4,180.34,7.55305125]
[1730188876370,7.55305125,180.37,180.26,23.776884]
[1730188876555,7.55305125,180.37,180.32,7.55305125]
[1730188876744,16.0999,180.39,180.34,7.55305125]
[1730188877261,23.65295125,180.39,180.34,7.55305125]
[1730188878063,5.5438,180.38,180.34,7.55305125]
[1730188880765,5.5438,180.38,180.33,7.55305125]
[1730188881762,5.5438,180.38,180.34,7.55305125]
[1730188883553,13.92585125,180.4,180.35,7.55305125]
[1730188883554,5.5432,180.4,180.35,7.55305125]
[1730188883745,5.5432,180.4,180.36,7.55305125]
[1730188884351,5.5432,180.4,180.37,7.55305125]
[1730188884858,21.73484267,180.41,180.38,7.55305125]
[1730188890362,21.73484267,180.41,180.37,7.55305125]
[1730188890838,21.73484267,180.41,180.36,7.55305125]
[1730188891248,29.28789392,180.41,180.36,7.55305125]
[1730188891623,21.73484267,180.41,180.36,7.55305125]
[1730188892150,7.55305125,180.4,180.32,23.776884]
[1730188892321,7.55305125,180.4,180.31,15.4242]
[1730188892522,7.55305125,180.39,180.31,15.4242]
[1730188892718,7.55305125,180.39,180.33,7.55305125]
[1730188893825,13.09685125,180.39,180.34,7.55305125]
[1730188894039,5.5438,180.39,180.35,7.55305125]
[1730188896143,5.5438,180.39,180.36,7.55305125]
[1730188897245,5.5432,180.4,180.35,7.55305125]
[1730188897627,39.43379392,180.41,180.31,15.4242]
[1730188897628,16.19194267,180.41,180.38,7.55305125]
[1730188897822,21.73484267,180.41,180.38,7.55305125]
[1730188898026,21.73484267,180.41,180.36,7.55305125]
[1730188898543,7.55305125,180.38,180.33,7.55305125]
[1730188898926,7.55305125,180.39,180.34,7.55305125]
[1730188899219,5.5429,180.41,180.36,7.55305125]
[1730188899426,13.09595125,180.41,180.36,7.55305125]
[1730188899842,13.09595125,180.41,180.35,7.55305125]
[1730188900842,7.55305125,180.4,180.34,7.55305125]
[1730188901339,5.5429,180.41,180.34,7.55305125]
[1730188901653,7.55305125,180.4,180.34,7.55305125]
[1730188902424,13.09645125,180.4,180.34,7.55305125]
[1730188903935,5.5434,180.4,180.35,7.55305125]
[1730188905263,13.09645125,180.4,180.34,7.55305125]
[1730188905833,5.5434,180.4,180.35,7.55305125]
[1730188907223,11.33455787,180.44,180.37,7.55305125]
[1730188907433,7.55305125,180.42,180.36,7.55305125]
[1730188907636,7.55305125,180.39,180.31,15.4242]
[1730188907832,7.55305125,180.39,180.33,7.55305125]
[1730188908155,7.55305125,180.38,180.32,7.55305125]
[1730188908444,13.09695125,180.38,180.32,7.55305125]
[1730188908750,7.55305125,180.36,180.27,16.6178]
[1730188908956,7.55305125,180.36,180.3,7.55305125]
[1730188909326,7.55305125,180.34,180.27,16.6178]
[1730188909533,7.55305125,180.34,180.29,7.55305125]
[1730188910048,7.55305125,180.35,180.3,7.55305125]
[1730188910463,7.55305125,180.34,180.29,7.55305125]
[1730188910952,7.55305125,180.34,180.28,7.55305125]
[1730188911124,7.55305125,180.32,180.26,7.55305125]
[1730188911525,7.55305125,180.29,180.2,6.5814]
[1730188911746,7.55305125,180.3,180.25,7.55305125]
[1730188912054,7.55305125,180.32,180.26,7.55305125]
[1730188912255,7.55305125,180.31,180.26,7.55305125]
[1730188913157,16.5203,180.33,180.26,7.55305125]
[1730188913330,7.55305125,180.31,180.26,7.55305125]
[1730188913531,7.55305125,180.3,180.25,7.55305125]
[1730188914156,16.5203,180.33,180.26,7.55305125]
[1730188914453,7.55305125,180.31,180.25,7.55305125]
[1730188914650,7.55305125,180.3,180.25,7.55305125]
[1730188918724,7.55305125,180.3,180.24,7.55305125]
[1730188920055,7.55305125,180.3,180.25,7.55305125]
[1730188920282,22.0658,180.33,180.26,7.55305125]
[1730188920464,7.55305125,180.3,180.25,7.55305125]
[1730188923056,7.55305125,180.31,180.26,7.55305125]
[1730188923952,16.5203,180.33,180.28,7.55305125]
[1730188924164,6.651,180.36,180.28,7.55305125]
[1730188924364,7.55305125,180.34,180.28,7.55305125]
[1730188925175,13.09815125,180.34,180.28,7.55305125]
[1730188925364,21.9273,180.37,180.3,7.55305125]
[1730188925554,7.55305125,180.35,180.29,7.55305125]
[1730188927175,13.09795125,180.35,180.3,7.55305125]
[1730188927375,5.5449,180.35,180.3,7.55305125]
[1730188927575,13.09795125,180.35,180.3,7.55305125]
[1730188927749,7.55305125,180.33,180.28,7.55305125]
[1730188927952,7.55305125,180.31,180.26,7.55305125]
[1730188928271,7.55305125,180.31,180.25,23.19935125]
[1730188928462,7.55305125,180.3,180.25,7.55305125]
[1730188928961,7.55305125,180.29,180.24,7.55305125]
[1730188929276,7.55305125,180.3,180.24,7.55305125]
[1730188929976,7.55305125,180.3,180.25,7.55305125]
[1730188934462,7.55305125,180.27,180.21,15.6766]
[1730188934662,7.55305125,180.27,180.22,7.55305125]
[1730188935172,7.55305125,180.27,180.21,15.6766]
[1730188935350,7.55305125,180.27,180.22,7.55305125]
[1730188937554,7.55305125,180.28,180.23,7.55305125]
[1730188937755,13.09985125,180.29,180.23,7.55305125]
[1730188938256,16.3969,180.31,180.24,7.55305125]
[1730188938458,16.3969,180.31,180.25,7.55305125]
[1730188938459,7.55305125,180.3,180.25,7.55305125]
[1730188939584,13.09935125,180.3,180.25,7.55305125]
[1730188940169,16.3969,180.31,180.25,7.55305125]
[1730188940458,7.55305125,180.3,180.25,7.55305125]
[1730188940657,21.9429,180.31,180.25,7.55305125]
[1730188940860,7.55305125,180.3,180.25,7.55305125]
[1730188941251,21.9429,180.31,180.25,7.55305125]
[1730188941455,7.55305125,180.3,180.25,7.55305125]
[1730188942383,29.49595125,180.31,180.26,7.55305125]
[1730188943657,16.3969,180.31,180.26,7.55305125]
[1730188943974,7.55305125,180.32,180.26,7.55305125]
[1730188944181,7.55305125,180.31,180.26,7.55305125]
[1730188944367,7.55305125,180.32,180.27,7.55305125]
[1730188945773,13.09895125,180.32,180.27,7.55305125]
[1730188945976,13.09895125,180.32,180.21,23.776884]
[1730188945977,7.55305125,180.31,180.26,7.55305125]
[1730188946766,13.09895125,180.32,180.26,7.55305125]
[1730188947691,5.5454,180.33,180.29,7.55305125]
[1730188947982,7.55305125,180.34,180.29,7.55305125]
[1730188949092,7.55305125,180.34,180.28,7.55305125]
[1730188949987,7.55305125,180.34,180.29,7.55305125]
[1730188956592,7.55305125,180.34,180.28,7.55305125]
[1730188956799,13.09805125,180.34,180.28,7.55305125]
[1730188957699,16.4434,180.37,180.29,7.55305125]
[1730188957995,7.55305125,180.35,180.3,7.55305125]
[1730188958973,7.55305125,180.34,180.23,21.9332]
[1730188959179,7.55305125,180.33,180.24,43.776884]
[1730188959380,7.55305125,180.33,180.28,7.55305125]
[1730188961001,7.55305125,180.34,180.28,7.55305125]
[1730188961692,5.5448,180.35,180.3,7.55305125]
[1730188961897,5.5448,180.35,180.31,7.55305125]
[1730188962398,21.9878,180.37,180.32,7.55305125]
[1730188962584,29.54085125,180.37,180.32,7.55305125]
[1730188963484,21.9878,180.37,180.32,7.55305125]
[1730188963798,13.09675125,180.39,180.34,7.55305125]
[1730188965175,5.5437,180.39,180.35,7.55305125]
[1730188965598,16.2698,180.41,180.35,7.55305125]
[1730188965910,7.55305125,180.4,180.35,7.55305125]
[1730188966885,13.09655125,180.4,180.35,7.55305125]
[1730188968493,5.5435,180.4,180.36,7.55305125]
[1730188971190,5.5435,180.4,180.37,7.55305125]
[1730188971505,5.5435,180.4,180.38,7.55305125]
[1730188974293,5.5435,180.4,180.37,7.55305125]
[1730188980336,5.5435,180.4,180.36,7.55305125]
[1730188980621,5.5435,180.4,180.37,7.55305125]
[1730188981814,5.5435,180.4,180.36,7.55305125]
[1730188981989,13.09655125,180.4,180.32,2.22093388]
[1730188982188,13.09655125,180.4,180.35,7.55305125]
[1730188983020,5.5435,180.4,180.37,7.55305125]
[1730188983213,5.5435,180.4,180.36,7.55305125]
[1730188983403,13.09655125,180.4,180.35,7.55305125]
[1730188984128,7.55305125,180.39,180.34,7.55305125]
[1730188984315,7.55305125,180.37,180.31,2.22097657]
[1730188984509,7.55305125,180.36,180.31,7.55305125]
[1730188984692,7.55305125,180.37,180.32,7.55305125]
[1730188985994,7.55305125,180.38,180.33,7.55305125]
[1730188986496,13.09655125,180.39,180.33,7.55305125]
[1730188986923,7.55305125,180.38,180.33,7.55305125]
[1730188987300,13.09715125,180.38,180.29,22.658]
[1730188987513,13.09715125,180.38,180.32,7.55305125]
[1730188987803,13.09715125,180.38,180.33,7.55305125]
[1730188988006,5.5441,180.38,180.33,7.55305125]
[1730188988531,13.09715125,180.38,180.33,7.55305125]
[1730188989324,5.5441,180.38,180.34,7.55305125]
[1730188990636,13.09715125,180.38,180.33,7.55305125]
[1730188991132,5.5441,180.38,180.29,22.658]
[1730188991330,16.2698,180.41,180.36,7.55305125]
[1730188991829,29.36575125,180.41,180.36,7.55305125]
[1730188992418,21.8127,180.41,180.37,7.55305125]
[1730188995351,13.09555125,180.43,180.37,7.55305125]
[1730188995650,13.09555125,180.43,180.38,7.55305125]
[1730188995808,5.5425,180.43,180.38,7.55305125]
[1730188996130,13.09555125,180.43,180.38,7.55305125]
[1730188997429,13.09555125,180.43,180.38,6.55305125]
[1730188997933,13.09555125,180.43,180.37,7.55305125]
[1730189001118,5.5425,180.43,180.38,7.55305125]
[1730189001436,13.09555125,180.43,180.38,7.55305125]
[1730189001824,18.98921608,180.48,180.42,7.55305125]
[1730189002136,0.609393,180.48,180.41,23.776884]
[1730189002442,0.609393,180.48,180.45,7.55305125]
[1730189002613,0.609393,180.48,180.41,23.776884]
[1730189003042,6.150193,180.48,180.44,7.55305125]
[1730189004929,6.150193,180.48,180.45,7.55305125]
[1730189006632,6.150193,180.48,180.44,7.55305125]
[1730189007531,0.609393,180.48,180.45,7.55305125]
[1730189009731,0.609393,180.48,180.44,7.55305125]
[1730189010432,8.16244425,180.48,180.4,15.9685]
[1730189010659,6.150193,180.48,180.43,7.55305125]
[1730189011732,6.150193,180.48,180.44,7.55305125]
[1730189012837,6.150193,180.48,180.4,15.9685]
[1730189013063,6.150193,180.48,180.44,7.55305125]
[1730189014564,7.55305125,180.45,180.39,2.21989414]
[1730189014751,7.55305125,180.45,180.39,7.55305125]
[1730189015345,7.55305125,180.41,180.37,2.22005415]
[1730189015557,7.55305125,180.4,180.34,23.67375125]
[1730189015860,7.55305125,180.4,180.35,2.22043441]
[1730189016039,7.55305125,180.4,180.34,23.67375125]
[1730189016235,20.0,180.38,180.35,2.22044216]
[1730189016463,21.852,180.39,180.26,7.55305125]
[1730189016653,7.55305125,180.32,180.27,9.77349341]
[1730189016845,7.55305125,180.32,180.26,7.55305125]
[1730189017037,7.55305125,180.31,180.27,2.22044216]
[1730189017233,21.852,180.39,180.26,7.55305125]
[1730189017451,7.55305125,180.32,180.27,7.55305125]
[1730189018139,7.55305125,180.33,180.27,7.55305125]
[1730189018456,7.55305125,180.32,180.27,7.55305125]
[1730189020371,7.55305125,180.32,180.26,2.22136827]
[1730189020372,7.55305125,180.32,180.26,7.55305125]
[1730189020732,7.55305125,180.32,180.27,7.55305125]
[1730189022150,7.55305125,180.31,180.26,7.55305125]
[1730189022459,7.55305125,180.31,180.27,2.22135152]
[1730189023064,21.852,180.39,180.27,2.22135152]
[1730189023244,7.55305125,180.32,180.27,9.77440277]
[1730189023444,7.55305125,180.32,180.27,7.55305125]
[1730189024257,7.55305125,180.3,180.25,23.776884]
[1730189024447,7.55305125,180.3,180.26,2.22135152]
[1730189024650,7.55305125,180.27,180.26,2.22135152]
[1730189024948,7.55305125,180.27,180.23,2.22135152]
[1730189025150,7.55305125,180.27,180.24,2.22135152]
[1730189025391,7.55305125,180.27,180.23,2.22135152]
[1730189025668,7.55305125,180.28,180.23,9.77440277]
[1730189026042,7.55305125,180.25,180.23,2.22135152]
[1730189026243,7.55305125,180.25,180.21,2.22135152]
[1730189026543,7.55305125,180.25,180.22,2.22135152]
[1730189026744,7.55305125,180.24,180.21,2.22135152]
[1730189027067,7.55305125,180.23,180.21,2.22135152]
[1730189027241,7.55305125,180.23,180.2,385.2]
[1730189027876,7.55305125,180.24,180.2,385.2]
[1730189028569,7.55305125,180.23,180.18,7.55305125]
[1730189028745,7.55305125,180.23,180.19,2.22202557]
[1730189028947,7.55305125,180.23,180.19,2.22202616]
[1730189029455,7.55305125,180.23,180.18,2.22202616]
[1730189029850,7.55305125,180.23,180.18,9.77507741]
[1730189030051,7.55305125,180.23,180.18,7.55305125]
[1730189030262,7.55305125,180.23,180.18,9.77507741]
[1730189030467,7.55305125,180.23,180.17,9.77507741]
[1730189030670,7.55305125,180.24,180.19,7.55305125]
[1730189030866,13.10105125,180.25,180.2,7.55305125]
[1730189031174,7.55305125,180.24,180.19,7.55305125]
[1730189031545,7.55305125,180.24,180.18,7.55305125]
[1730189031745,7.55305125,180.24,180.19,7.55305125]
[1730189033766,7.55305125,180.24,180.18,7.55305125]
[1730189033968,7.55305125,180.24,180.19,7.55305125]
[1730189034853,7.55305125,180.24,180.17,2.2220293]
[1730189035166,7.55305125,180.21,180.17,2.2220293]
[1730189035466,7.55305125,180.22,180.17,7.55305125]
[1730189035782,13.10155125,180.23,180.17,7.55305125]
[1730189036500,5.79778438,180.26,180.22,7.55305125]
[1730189036680,7.55305125,180.32,180.25,7.55305125]
[1730189036872,7.55305125,180.32,180.27,7.55305125]
[1730189037087,7.55305125,180.32,180.26,7.55305125]
[1730189037275,7.55305125,180.32,180.27,7.55305125]
[1730189037479,7.55305125,180.31,180.26,7.55305125]
[1730189037682,13.09875125,180.32,180.27,7.55305125]
[1730189038554,7.55305125,180.29,180.24,7.55305125]
[1730189038753,5.5457,180.32,180.23,7.55305125]
[1730189038944,7.55305125,180.29,180.23,7.55305125]
[1730189040084,13.09975125,180.29,180.23,7.55305125]
[1730189040400,13.09975125,180.29,180.24,7.55305125]
[1730189041079,13.09975125,180.29,180.23,7.55305125]
[1730189041518,7.55305125,180.26,180.19,16.1039]
[1730189041684,5.5467,180.29,180.19,16.1039]
[1730189041685,7.55305125,180.27,180.19,16.1039]
[1730189041881,7.55305125,180.26,180.2,7.55305125]
[1730189042083,7.55305125,180.25,180.17,2.22185715]
[1730189042385,7.55305125,180.25,180.19,7.55305125]
[1730189042602,7.55305125,180.24,180.19,7.55305125]
[1730189042781,7.55305125,180.25,180.2,7.55305125]
[1730189042986,7.55305125,180.25,180.19,7.55305125]
[1730189043302,13.10085125,180.25,180.19,7.55305125]
[1730189044225,13.10085125,180.25,180.2,7.55305125]
[1730189045897,13.10085125,180.25,180.19,7.55305125]
[1730189049005,5.5478,180.25,180.2,7.55305125]
[1730189049789,23.10005125,180.26,180.17,2.22197576]
[1730189049790,15.547,180.26,180.21,7.55305125]
[1730189049986,13.10025125,180.28,180.22,7.55305125]
[1730189050185,7.55305125,180.27,180.21,7.55305125]
[1730189050964,13.10025125,180.27,180.21,7.55305125]
[1730189051467,5.5472,180.27,180.22,7.55305125]
[1730189054565,5.5468,180.29,180.2,53.989089]
[1730189054878,5.5468,180.29,180.25,7.55305125]
[1730189057192,5.5468,180.29,180.18,23.776884]
[1730189057394,5.5468,180.29,180.24,7.55305125]
[1730189058186,5.5468,180.29,180.25,7.55305125]
[1730189059697,5.5468,180.29,180.26,7.55305125]
[1730189060576,19.46738204,180.32,180.26,7.55305125]
[1730189060881,5.546,180.31,180.28,7.55305125]
[1730189061192,5.546,180.31,180.29,7.55305125]
[1730189061786,5.5453,180.33,180.29,7.55305125]
[1730189061999,5.5453,180.33,180.28,7.55305125]
[1730189062498,13.09835125,180.33,180.28,7.55305125]
[1730189063078,13.09835125,180.33,180.22,23.776884]
[1730189063274,13.09835125,180.33,180.28,7.55305125]
[1730189064488,5.5453,180.33,180.28,7.55305125]
[1730189064687,5.5453,180.33,180.29,7.55305125]
[1730189066303,5.5453,180.33,180.3,7.55305125]
[1730189066489,15.8927,180.34,180.31,7.55305125]
[1730189066693,21.4379,180.34,180.31,7.55305125]
[1730189068513,21.4379,180.34,180.3,7.55305125]
[1730189068810,21.4379,180.34,180.31,7.55305125]
[1730189069185,21.4379,180.34,180.3,7.55305125]
[1730189069710,28.99095125,180.34,180.23,2.22134431]
[1730189070008,7.55305125,180.32,180.26,7.55305125]
[1730189070513,7.55305125,180.32,180.22,8.48814431]
[1730189070701,7.55305125,180.32,180.26,7.55305125]
[1730189070905,7.55305125,180.32,180.27,7.55305125]
[1730189071590,5.546,180.31,180.27,7.55305125]
[1730189072624,5.5454,180.33,180.3,7.55305125]
[1730189072792,5.5454,180.33,180.31,7.55305125]
[1730189072998,5.5454,180.33,180.29,7.55305125]
[1730189075504,5.5454,180.33,180.3,9.77424692]
[1730189075716,7.55305125,180.35,180.3,7.55305125]
[1730189075927,5.545,180.34,180.3,7.55305125]
[1730189077320,5.5447,180.35,180.3,7.55305125]
[1730189079125,13.09775125,180.35,180.3,7.55305125]